[Event "French-ch U16-U18 2024"]
[Site "Agen"]
[Date "2024.04.14"]
[Round "1.12"]
[White "Delestre, Zoe"]
[Black "Yaghi, leen"]
[Result "0-1"]
[ECO "B30"]
[WhiteElo "1621"]
[BlackElo "1941"]
[Annotator "TA"]
[PlyCount "74"]
[EventDate "2024.04.14"]
[EventType "swiss"]
[EventCountry "FRA"]
[SourceTitle "playchess.com"]
[Source "ChessBase"]
[SourceQuality "1"]
[TimeControl "5400+30"]

{[%evp 9,74,-14,-12,-79,8,-52,-29,-40,-31,-78,-54,-77,-77,-98,-100,-129,-136,-117,-86,-91,-68,-61,-55,-52,-48,-87,-65,-79,-73,-148,-149,-331,-325,-389,-339,-473,-469,-787,-780,-878,-878,-983,-895,-902,-872,-1001,-862,-1533,-930,-1058,-1063,-2805,-1658,-1933,-1858,-1779,-1593,-1913,0,-1854,-1752,-29972,-1214,-1151,-1043,-1114,-1108]} 1. e4 {[%emt 0:00:03]} c5 {[%emt 0:00:13]} 2. Nf3 {[%emt 0:00:06]} Nc6 {[%emt 0:00:14]} 3. Bb5 {[%emt 0:00:06]} Nf6 {[%emt 0:00:34]} 4. e5 {[%emt 0:00:18]} Nd5 {[%emt 0:00:33]} 5. Bxc6 {[%emt 0:04:59]} dxc6 {[%emt 0:00:21]} 6. Ng5 {[%emt 0:01:41]} (6. d3 $11) 6... e6 {[%emt 0:05:29]} ({Black should try} 6... Qc7 $17 7. O-O Qxe5) 7. d4 {[%emt 0:08:23]} (7. d3 $11) 7... cxd4 {[%emt 0:10:05]} 8. Qxd4 {[%emt 0:02:53] Black has an edge.} Be7 {[%emt 0:03:36]} 9. f4 {[%emt 0:12:07]} (9. Ne4 $15) 9... Qc7 {[%emt 0:04:07]} 10. Nd2 {[%emt 0:07:43]} b6 {[%emt 0:07:47]} 11. a3 {[%emt 0:02:27]} c5 {[%emt 0:05:21]} 12. Qe4 {[%emt 0:05:37]} Bb7 {[%emt 0:01:04] [#] aiming for ...Bxg5.} 13. O-O {[%emt 0:02:46]} Rd8 {[%emt 0:19:48] White must now prevent ...Bxg5.} 14. Ndf3 {[%emt 0:08:39]} Nb4 {[%emt 0:05:58]} 15. Qe2 {[%emt 0:02:49]} Ba6 {[%emt 0:03:49]} 16. c4 {[%emt 0:02:11]} Nc6 $36 {[%emt 0:00:19][%mdl 2048] Black is more active.} 17. Be3 {[%emt 0:04:23][%cal Of4f5]} h6 {[%emt 0:12:49] White is now going downhill.} 18. Ne4 {[%emt 0:04:36][%cal Of4f5]} O-O {[%emt 0:00:18]} 19. g4 {[%emt 0:06:15] [#]} (19. Rab1 $142) 19... Nd4 $1 $17 {[%emt 0:02:53]} 20. Qg2 {[%emt 0:06:57]} (20. Bxd4 $17 {was forced.} cxd4 21. Rfd1) 20... Bxc4 $19 {[%emt 0:00:40]} 21. Rf2 {[%emt 0:01:01]} Nxf3+ {[%emt 0:00:55]} 22. Rxf3 {[%emt 0:01:25]} Bd5 {[%emt 0:00:24]} 23. Rh3 {[%emt 0:00:47]} (23. Nc3 $142 Bxf3 24. Qxf3) 23... Qc6 {[%emt 0:08:47]} 24. g5 {[%emt 0:03:09]} Bxe4 {[%emt 0:00:28] A strong pair of Bishops.} 25. Qg3 {[%emt 0:00:16]} hxg5 {[%emt 0:02:29]} 26. fxg5 {[%emt 0:00:25]} Bf5 {[%emt 0:00:32]} 27. Rh5 {[%emt 0:01:53]} Qe4 {[%emt 0:01:08]} 28. Bf4 {[%emt 0:02:32]} Bg6 {[%emt 0:03:08]} 29. Rh4 {[%emt 0:00:30]} Rd3 {[%emt 0:00:22]} 30. Qg4 {[%emt 0:02:28]} Qd4+ {[%emt 0:00:34]} 31. Kf1 {[%emt 0:01:44]} Rd8 {[%emt 0:00:09]} 32. Re1 {[%emt 0:01:17] Repels Qe4} Qc4 {[%emt 0:01:01]} 33. Kf2 {[%emt 0:01:39] Prevents Re3.} Qd4+ {[%emt 0:00:21]} 34. Kf1 {[%emt 0:01:09]} Qxb2 {[%emt 0:00:11]} 35. Be3 {[%emt 0:00:30] Dodges R8d4} Qxe5 {[%emt 0:00:43]} (35... Rxe3 $142 36. Rxe3 Rd4 37. Qe2 Qc1+ (37... Qxe2+ $2 38. Rxe2 Rxh4 39. Re3 $19) 38. Kg2 Rd2 (38... Rxh4 $2 39. Qe1 $19) 39. Rg4 Bxg5 (39... Rxe2+ $2 40. Rxe2 Qd1 41. Kf2 $19) 40. Kg3 Rxe2 (40... Bxe3 {gets mated.} 41. Qxe3 Rd3 42. Qxd3 Bxd3 43. h3 Qe3+ 44. Kh2 Bf1 45. Rg2 Bxg2 46. Kxg2 c4 47. h4 c3 48. h5 c2 49. h6 c1=Q 50. h7+ Kxh7 51. Kh2 Qcg1#) 41. Rxe2 Qg1+ (41... Qxa3+ $2 42. Kg2 $19) 42. Kf3 Qf1+ (42... Bh5 {is a self mate.} 43. Ree4 Bh4 44. Ke2 Bxg4+ 45. Rxg4 Qxg4+ 46. Kd2 c4 47. Kc3 Qe2 48. Kb4 a6 49. h3 Be1+ 50. Ka4 Qd1#) 43. Kg3 Qxe2 44. Rxg5 Be4 45. Rg4 Qe3+ 46. Kh4 Bf5 47. h3 a5 (47... Bxg4 48. Kxg4 g5 49. h4 Qf4+ 50. Kh3 Qf3+ 51. Kh2 gxh4 52. a4 h3 53. Kg1 Qg2#) 48. a4 Kh7 49. Rc4 Qxh3+ 50. Kg5 Qh6#) 36. Qh3 {[%emt 0:00:19]} Qf5+ {[%emt 0:00:06]} ({And not} 36... Bxg5 37. Rh8#) 37. Qxf5 {[%emt 0:01:58]} Bxf5 {[%emt 0:01:44] Weighted Error Value: White=1.11/Black=0.67.  Loses game:     	White=1     	---        Mistake:       	White=4     	Black=1      Inaccurate:     	White=3     	---        OK:         	White=3     	Black=7      Best:        	White=1     	Black=1} 0-1

[Event "French-ch U16-U18 2024"]
[Site "Agen"]
[Date "2024.04.14"]
[Round "1.13"]
[White "Deladerriere, Calypso"]
[Black "Denis, Margot"]
[Result "1-0"]
[ECO "C10"]
[WhiteElo "1935"]
[BlackElo "1594"]
[Annotator "TA"]
[PlyCount "69"]
[EventDate "2024.04.14"]
[EventType "swiss"]
[EventCountry "FRA"]
[SourceTitle "playchess.com"]
[Source "ChessBase"]
[SourceQuality "1"]
[TimeControl "5400+30"]

{[%evp 17,69,12,12,14,62,53,357,352,402,19,23,29,23,33,25,17,53,46,42,0,401,385,525,530,568,566,578,564,585,575,630,641,663,689,706,654,708,710,739,735,888,776,1133,1127,4798,2936,5210,3960,6638,6491,29977,5717,6279,5410]} 1. e4 {[%emt 0:00:13]} e6 {[%emt 0:00:13]} 2. Nf3 {[%emt 0:00:16]} d5 {[%emt 0:00:22]} 3. Nc3 {[%emt 0:00:18]} dxe4 {[%emt 0:00:12]} 4. Nxe4 {[%emt 0:00:26]} Nd7 {[%emt 0:00:14]} 5. d4 {[%emt 0:00:52]} Ngf6 {[%emt 0:00:18]} 6. Nxf6+ {[%emt 0:00:32]} Nxf6 {[%emt 0:00:15]} 7. Bd3 {[%emt 0:01:21]} c5 {[%emt 0:00:47]} 8. dxc5 {[%emt 0:04:03]} Bxc5 {[%emt 0:00:17]} 9. O-O {[%emt 0:00:14]} O-O {[%emt 0:00:22]} 10. Bg5 {[%emt 0:01:27]} Bd7 {[%emt 0:05:28]} (10... b6 $11 {feels stronger.}) 11. Ne5 $14 {[%emt 0:04:13]} Bc6 $2 {[%emt 0:05:54][%mdl 8192]} (11... Be8 $14) 12. Nxc6 $18 {[%emt 0:02:24] White is winning.} bxc6 {[%emt 0:00:09] [#]} 13. Qf3 $2 {[%emt 0:00:55]} ({White has to play} 13. Bxf6 $1 $18 Qxf6 14. Qh5) 13... Qd5 $11 {[%emt 0:07:54]} 14. Qf4 {[%emt 0:04:49][%cal Oa1d1] Threatens to win with Rad1!} ({Of course not} 14. Bxf6 Qxf3 15. gxf3 gxf6 $15) 14... Qd4 {[%emt 0:09:33]} 15. Qxd4 {[%emt 0:03:40]} Bxd4 {[%emt 0:00:12]} 16. c3 {[%emt 0:01:11]} Bc5 {[%emt 0:08:28]} 17. Rad1 {[%emt 0:01:01][%cal Ba1d1,Bd1d2,Bd2d7,Bd7c7,Bc7c6][%mdl 32]} Rfd8 {[%emt 0:08:35]} 18. Rd2 {[%emt 0:02:12]} Rd7 $2 {[%emt 0:03:20][%mdl 8192] White now steadily converts the win.} (18... Rd5 $11 {and Black is okay.} 19. Bxf6 gxf6) 19. Bxf6 $18 {[%emt 0:00:41][%cal Od3h7]} gxf6 {[%emt 0:00:44] [#]} 20. Bxh7+ $1 {[%emt 0:00:11][%mdl 512]} Kxh7 {[%emt 0:00:05]} 21. Rxd7 {[%emt 0:00:11][%mdl 4096] Endgame. KRR-KRB} Kg6 {[%emt 0:01:17]} 22. Rc7 {[%emt 0:00:18]} Rd8 {[%emt 0:01:38]} 23. Rxc6 {[%emt 0:00:32]} Bb6 {[%emt 0:00:13]} 24. b4 {[%emt 0:00:26]} Rd2 {[%emt 0:01:45]} 25. a4 {[%emt 0:00:25][%cal Ba2a4,Ba4a5][%mdl 32]} f5 {[%emt 0:01:18]} 26. a5 {[%emt 0:00:53]} Bd8 {[%emt 0:00:14]} 27. g3 {[%emt 0:01:32]} Bf6 {[%emt 0:01:32]} 28. Rc1 {[%emt 0:02:04]} Rb2 {[%emt 0:01:20]} 29. Rc7 {[%emt 0:00:42]} Rb3 {[%emt 0:01:16]} 30. Rxa7 {[%emt 0:01:04]} Bxc3 {[%emt 0:00:32] [#]} 31. Rxc3 $1 {[%emt 0:03:26]} Rxc3 {[%emt 0:00:11]} (31... Rxb4 32. Ra3) 32. b5 {[%emt 0:00:03][%cal Bb4b5,Bb5b6][%mdl 32] aiming for b6.} Kg5 {[%emt 0:02:32]} 33. b6 {[%emt 0:00:53][%cal Ob6b7] And now b7! would win.} Kg4 {[%emt 0:00:27]} 34. Kg2 {[%emt 0:00:21]} e5 {[%emt 0:00:28]} 35. h3+ {[%emt 0:00:58] Weighted Error Value: White=0.25 (precise) /Black=0.88.  Loses game:     	---       	Black=2      Missed win:     	White=1     	---        Mistake:       	---       	Black=1      Inaccurate:     	White=1     	Black=2      OK:         	White=10    	Black=3      Best:        	White=1     	---        Brilliant:      	White=1     	---} 1-0

[Event "French-ch U16-U18 2024"]
[Site "Agen"]
[Date "2024.04.14"]
[Round "1.14"]
[White "Dartigues, Marie"]
[Black "Grimault, Leane"]
[Result "0-1"]
[ECO "B01"]
[WhiteElo "1570"]
[BlackElo "1930"]
[Annotator "TA"]
[PlyCount "68"]
[EventDate "2024.04.14"]
[EventType "swiss"]
[EventCountry "FRA"]
[SourceTitle "playchess.com"]
[Source "ChessBase"]
[SourceQuality "1"]
[TimeControl "5400+30"]

{[%evp 9,68,36,28,30,26,0,0,5,12,-6,0,-7,-8,-6,15,-6,0,-11,12,-58,-85,-103,-68,-58,-45,-47,-57,-85,-85,-99,-87,-104,-86,-114,-107,-135,-114,-156,-134,-218,-212,-218,-222,-232,-200,-255,-282,-313,-304,-866,-858,-902,-922,-897,-884,-881,-851,-831,-814,-29979,-29980]} 1. e4 {[%emt 0:00:02]} g6 {[%emt 0:00:11]} 2. d4 {[%emt 0:04:46]} d5 {[%emt 0:00:11]} 3. exd5 {[%emt 0:09:43]} Qxd5 {[%emt 0:00:18]} 4. Nf3 {[%emt 0:00:12]} Bg7 {[%emt 0:00:30]} 5. c4 {[%emt 0:05:45]} Qd8 {[%emt 0:00:58]} 6. Nc3 {[%emt 0:01:48]} Nh6 {[%emt 0:00:36]} 7. Be2 {[%emt 0:04:17]} Nf5 {[%emt 0:00:58]} 8. d5 {[%emt 0:00:54] With the idea g4. The position is equal.} O-O {[%emt 0:00:18]} 9. O-O {[%emt 0:00:49]} e5 {[%emt 0:00:23]} 10. dxe6 {[%emt 0:02:56]} Bxe6 {[%emt 0:01:40]} 11. Bf4 {[%emt 0:01:50]} c6 {[%emt 0:05:24]} 12. Qxd8 {[%emt 0:10:44]} Rxd8 {[%emt 0:00:15]} 13. Rad1 {[%emt 0:00:13]} Nd7 {[%emt 0:03:48]} 14. Rd2 {[%emt 0:01:22]} (14. Ne4 $11) 14... Nb6 $1 $15 {[%emt 0:02:59]} 15. c5 {[%emt 0:03:08]} Nd5 {[%emt 0:02:58]} 16. Nxd5 {[%emt 0:03:11]} Bxd5 {[%emt 0:00:22]} 17. Rfd1 {[%emt 0:01:07][%cal Oe2c4]} Re8 {[%emt 0:02:06][%cal Oe8e4]} 18. b3 {[%emt 0:01:22] Black continues to play with concentration.} Re4 {[%emt 0:09:53]} 19. Bg3 {[%emt 0:02:39]} Rae8 {[%emt 0:02:28]} 20. Kf1 {[%emt 0:03:12]} Nxg3+ {[%emt 0:04:45]} 21. fxg3 {[%emt 0:01:27]} a5 {[%emt 0:00:58]} 22. Bd3 {[%emt 0:04:51]} Re3 {[%emt 0:00:53]} 23. Rf2 {[%emt 0:04:10]} Bf8 {[%emt 0:02:23] Black has more active pieces.} 24. Bc4 {[%emt 0:04:38]} (24. Rc2 $17) 24... Bxc4+ $19 {[%emt 0:00:50]} ({Don't do} 24... Bxc5 25. Bxd5 cxd5 26. Rfd2 $17) 25. bxc4 {[%emt 0:00:13]} Bxc5 {[%emt 0:00:37]} 26. Rfd2 {[%emt 0:00:16]} b6 {[%emt 0:09:35]} 27. Rd7 {[%emt 0:06:13]} Rc3 {[%emt 0:00:48]} 28. Ng5 {[%emt 0:01:25]} Rxc4 {[%emt 0:01:41]} 29. Nxf7 $2 {[%emt 0:00:53] [#]} (29. Rd8 Rxd8 30. Rxd8+ Kg7 31. Rd7) 29... Rf8 {[%emt 0:00:22]} 30. Ke2 {[%emt 0:01:24]} Rxf7 {[%emt 0:01:02]} 31. Rxf7 {[%emt 0:00:28]} Kxf7 {[%emt 0:00:33]} 32. Rd2 {[%emt 0:00:14]} Re4+ {[%emt 0:01:41]} 33. Kf3 {[%emt 0:00:42]} Re1 {[%emt 0:00:48]} 34. Kf4 {[%emt 0:00:30]} Be3+ {[%emt 0:00:26] Weighted Error Value: White=0.61/Black=0.08 (flawless) .  Mistake:       	White=3     	---        Inaccurate:     	White=3     	Black=1      OK:         	White=3     	Black=7      Best:        	---       	Black=3      Strong:       	---       	Black=1} 0-1

[Event "French-ch U16-U18 2024"]
[Site "Agen"]
[Date "2024.04.14"]
[Round "1.15"]
[White "Milojevic-Daim, Lola-Shaina"]
[Black "Ines, Tinaig"]
[Result "1/2-1/2"]
[ECO "C00"]
[WhiteElo "1867"]
[BlackElo "1556"]
[Annotator "NA RC"]
[PlyCount "203"]
[EventDate "2024.04.14"]
[EventType "swiss"]
[EventCountry "FRA"]
[SourceTitle "playchess.com"]
[Source "ChessBase"]
[SourceQuality "1"]
[TimeControl "5400+30"]

1. Nf3 {[%emt 0:00:09]} Nf6 {[%emt 0:01:29]} 2. g3 {[%emt 0:00:04]} d5 {[%emt 0:00:43]} 3. Bg2 {[%emt 0:00:07]} Nc6 {[%emt 0:01:40]} 4. O-O {[%emt 0:00:20]} e6 {[%emt 0:06:17]} 5. d3 {[%emt 0:00:53]} Bd6 {[%emt 0:01:34]} 6. Nbd2 {[%emt 0:01:08]} O-O {[%emt 0:01:59]} 7. e4 {[%emt 0:01:20]} Re8 {[%emt 0:04:54] C00: French: Unusual White 2nd moves.} 8. Re1 {[%emt 0:05:18]} dxe4 {[%emt 0:09:35]} 9. dxe4 {[%emt 0:07:34]} e5 {[%emt 0:05:24]} 10. Nc4 {[%emt 0:09:35]} Be7 {[%emt 0:04:28]} 11. Nfxe5 {[%emt 0:12:17]} Qxd1 {[%emt 0:01:56]} 12. Rxd1 {[%emt 0:00:08]} Nxe5 {[%emt 0:00:10]} 13. Nxe5 {[%emt 0:00:13]} Bd6 {[%emt 0:10:08]} 14. Nc4 {[%emt 0:06:07]} Nxe4 {[%emt 0:05:22]} 15. Bxe4 {[%emt 0:00:19]} Rxe4 {[%emt 0:00:10]} 16. Nxd6 {[%emt 0:00:17]} cxd6 {[%emt 0:00:31]} 17. Bf4 {[%emt 0:00:30]} Bg4 {[%emt 0:04:23]} 18. Rxd6 {[%emt 0:05:33]} Rae8 {[%emt 0:03:40]} 19. Kg2 {[%emt 0:08:54]} Re2 {[%emt 0:06:58]} 20. Rd2 {[%emt 0:05:22]} Rxd2 {[%emt 0:02:07]} 21. Bxd2 {[%emt 0:00:10]} Re2 {[%emt 0:00:23]} 22. Re1 {[%emt 0:05:27]} Rxe1 {[%emt 0:03:42]} 23. Bxe1 {[%emt 0:00:08]} Be6 {[%emt 0:01:49]} 24. a3 {[%emt 0:01:27]} Bf5 {[%emt 0:02:17]} 25. c4 {[%emt 0:02:53]} Bc2 {[%emt 0:01:19]} 26. b4 {[%emt 0:08:21]} Bb3 {[%emt 0:02:26]} 27. c5 {[%emt 0:00:06]} Ba4 {[%emt 0:00:23]} 28. Kf3 {[%emt 0:01:31]} f6 {[%emt 0:01:53]} 29. Ke4 {[%emt 0:00:39]} Bc6+ {[%emt 0:00:22]} 30. Kd4 {[%emt 0:00:10]} Kf7 {[%emt 0:01:05]} 31. Kc4 {[%emt 0:01:40]} a6 {[%emt 0:00:12]} 32. Bd2 {[%emt 0:01:00]} Ke6 {[%emt 0:00:21]} 33. Kd4 {[%emt 0:01:33]} Kf5 {[%emt 0:00:36]} 34. h3 {[%emt 0:01:44]} Ke6 {[%emt 0:04:25]} 35. g4 {[%emt 0:03:30]} Kf7 {[%emt 0:05:04]} 36. g5 {[%emt 0:02:58]} Kg6 {[%emt 0:03:58]} 37. Be3 {[%emt 0:04:55]} (37. gxf6 $11 Kxf6 38. Bf4) 37... Kf5 {[%emt 0:02:04]} 38. h4 {[%emt 0:01:44]} fxg5 {[%emt 0:02:00]} (38... Kg4 $142) 39. Bxg5 {[%emt 0:00:25]} g6 {[%emt 0:00:54]} 40. Be7 {[%emt 0:00:54]} Ke6 {[%emt 0:00:13]} 41. Bd6 {[%emt 0:00:10]} Kf6 {[%emt 0:01:03]} 42. Ke3 {[%emt 0:01:44]} Bb5 {[%emt 0:00:42]} 43. c6 {[%emt 0:01:31]} Bxc6 {[%emt 0:00:11]} 44. Kd4 {[%emt 0:00:04]} Ke6 {[%emt 0:00:24]} 45. Bg3 {[%emt 0:00:13]} b6 {[%emt 0:01:07]} 46. Bc7 {[%emt 0:00:30]} b5 {[%emt 0:00:08]} 47. Kc5 {[%emt 0:00:20]} Kd7 {[%emt 0:00:15]} 48. Kb6 {[%emt 0:00:39]} Bd5 {[%emt 0:00:56]} 49. Bf4 {[%emt 0:00:33]} Bb3 {[%emt 0:00:14]} 50. Kxa6 {[%emt 0:00:29]} Ba4 {[%emt 0:00:06]} 51. Kb6 {[%emt 0:00:21]} Ke6 {[%emt 0:00:20]} 52. Kc5 {[%emt 0:00:22]} Kf5 {[%emt 0:00:10]} 53. Bg3 {[%emt 0:00:14]} Ke6 {[%emt 0:00:31]} 54. Kc6 {[%emt 0:00:24]} Ke7 {[%emt 0:00:38]} 55. Kd5 {[%emt 0:00:10]} Kf6 {[%emt 0:00:10]} 56. Kd6 {[%emt 0:00:44]} Bb3 {[%emt 0:00:22]} 57. Be5+ {[%emt 0:00:46]} (57. Kc5 $5 Ba4 $8 58. Bf4 $11) 57... Kf7 {[%emt 0:00:20]} 58. Bd4 {[%emt 0:00:13]} Ba4 {[%emt 0:00:12]} 59. Ke5 {[%emt 0:00:16]} Bb3 {[%emt 0:00:20]} 60. Kf4 {[%emt 0:00:30]} Ba4 {[%emt 0:00:46]} 61. Kg5 {[%emt 0:00:21]} (61. Bc3 $14) 61... Kg8 {[%emt 0:00:13]} (61... h5 $1 $11) 62. Kh6 {[%emt 0:00:51]} Bb3 {[%emt 0:00:51]} 63. h5 {[%emt 0:00:25]} Bc2 {[%emt 0:00:44]} 64. f4 {[%emt 0:00:58]} Bd3 {[%emt 0:01:03]} 65. Kg5 {[%emt 0:01:52]} Kf7 {[%emt 0:01:02]} 66. Bc3 {[%emt 0:00:34]} Bc2 {[%emt 0:00:20]} 67. h6 {[%emt 0:00:28]} Kg8 {[%emt 0:00:28]} 68. Kf6 {[%emt 0:00:21]} Bd3 {[%emt 0:00:26]} 69. Ke7 {[%emt 0:00:30]} Bc2 {[%emt 0:00:28]} 70. Kd6 {[%emt 0:00:08]} Kf7 {[%emt 0:00:17]} 71. Bd4 {[%emt 0:00:25]} Ba4 {[%emt 0:00:44]} 72. Ke5 {[%emt 0:00:20]} Bc2 {[%emt 0:00:19]} 73. Bc3 {[%emt 0:00:10]} Ke7 {[%emt 0:00:49]} 74. Bd4 {[%emt 0:00:16]} (74. Kd5 $14 {deserves consideration.}) 74... Kf7 {[%emt 0:00:12]} 75. Bc5 {[%emt 0:00:03]} Bd3 {[%emt 0:00:49] [#]} 76. a4 {[%emt 0:00:12]} bxa4 {[%emt 0:00:14]} 77. Kd5 {[%emt 0:00:22]} Kf6 {[%emt 0:00:22]} 78. Bd4+ $2 {[%emt 0:00:05]} (78. Be3 $11) 78... Kf7 $2 {[%emt 0:00:42]} (78... Kf5 $19 79. Be5 a3) 79. Kc5 {[%emt 0:00:20]} a3 {[%emt 0:00:43]} 80. b5 {[%emt 0:00:24]} Be4 {[%emt 0:00:30]} 81. Kd6 {[%emt 0:00:53]} a2 {[%emt 0:00:25]} 82. b6 {[%emt 0:00:11]} Bf3 {[%emt 0:00:25]} 83. Kc7 {[%emt 0:00:47]} Ke7 {[%emt 0:00:32]} 84. b7 {[%emt 0:00:42]} Bxb7 {[%emt 0:00:08]} 85. Kxb7 {[%emt 0:00:04]} Kd7 {[%emt 0:00:12]} 86. Kb6 {[%emt 0:00:19]} Kd6 {[%emt 0:00:20]} 87. Be5+ {[%emt 0:01:03]} Ke6 {[%emt 0:00:14]} 88. Ba1 {[%emt 0:00:46]} Kf5 {[%emt 0:00:20]} 89. Kc6 {[%emt 0:00:13]} Kxf4 {[%emt 0:00:12]} 90. Kd5 {[%emt 0:00:09]} Kg5 {[%emt 0:00:12]} 91. Bg7 {[%emt 0:00:13]} a1=Q {[%emt 0:00:54]} 92. Bxa1 {[%emt 0:00:03]} Kxh6 {[%emt 0:00:09]} 93. Ke4 {[%emt 0:00:03]} Kg5 {[%emt 0:00:18]} 94. Kf3 {[%emt 0:00:31]} h5 {[%emt 0:01:07]} 95. Kg3 {[%emt 0:00:29]} h4+ $11 {[%emt 0:00:11]} 96. Kh3 {[%emt 0:00:09]} Kh5 {[%emt 0:00:08]} 97. Bf6 {[%emt 0:00:20]} g5 {[%emt 0:00:18]} 98. Bxg5 {[%emt 0:00:46]} Kxg5 {[%emt 0:00:07]} 99. Kh2 {[%emt 0:00:05]} Kg4 {[%emt 0:00:21]} 100. Kg2 {[%emt 0:00:05]} h3+ {[%emt 0:00:11]} 101. Kh2 {[%emt 0:00:15]} Kh4 {[%emt 0:00:10]} 102. Kh1 {[%emt 0:00:09]} 1/2-1/2

[Event "French-ch U16-U18 2024"]
[Site "Agen"]
[Date "2024.04.14"]
[Round "1.16"]
[White "Makkar, Rajat"]
[Black "Beaurain, Yanis"]
[Result "1-0"]
[ECO "D30"]
[WhiteElo "2452"]
[BlackElo "1770"]
[Annotator "RC"]
[PlyCount "43"]
[EventDate "2024.04.14"]
[EventType "swiss"]
[EventCountry "FRA"]
[SourceTitle "playchess.com"]
[Source "ChessBase"]
[SourceQuality "1"]
[TimeControl "5400+30"]

1. d4 {[%emt 0:00:19]} d5 {[%emt 1:31:00]} 2. c4 {[%emt 0:00:11]} e6 {[%emt 0:00:00]} 3. Nf3 {[%emt 0:01:06]} a6 {[%emt 0:00:00]} 4. Bg5 {[%emt 0:00:48]} Be7 {[%emt 0:00:00]} 5. Bxe7 {[%emt 0:00:09]} Nxe7 {[%emt 0:00:00]} 6. Nbd2 {[%emt 0:00:25]} c5 {[%emt 0:00:00]} 7. cxd5 {[%emt 0:04:19]} cxd4 {[%emt 0:00:00]} 8. Qa4+ {[%emt 0:00:19]} b5 {[%emt 0:00:00]} 9. Qxd4 {[%emt 0:01:03]} O-O {[%emt 0:00:00]} 10. dxe6 {[%emt 0:02:53]} Bxe6 {[%emt 0:00:00]} 11. e3 {[%emt 0:04:35]} Nbc6 {[%emt 0:00:00]} 12. Qxd8 {[%emt 0:02:20]} Rfxd8 {[%emt 0:00:00]} 13. a3 {[%emt 0:00:10]} h6 {[%emt 0:00:00]} 14. Be2 {[%emt 0:00:54]} Nf5 {[%emt 0:00:00]} 15. O-O {[%emt 0:00:44]} Ne5 {[%emt 0:00:00]} 16. Rfd1 {[%emt 0:08:08]} Nd3 {[%emt 0:00:00]} 17. b4 {[%emt 0:11:18]} Rac8 {[%emt 0:00:00]} 18. Ne4 {[%emt 0:03:37]} Bc4 {[%emt 0:00:00]} 19. Rd2 {[%emt 0:02:20]} Ne5 {[%emt 0:00:00]} 20. Nxe5 {[%emt 0:00:47]} Rxd2 {[%emt 0:00:00]} 21. Bxc4 {[%emt 0:00:34]} bxc4 {[%emt 0:00:00]} 22. Nxd2 {[%emt 0:00:19]} 1-0

[Event "French-ch U16-U18 2024"]
[Site "Agen"]
[Date "2024.04.14"]
[Round "1.17"]
[White "Sergent, Ziggy"]
[Black "Razafindratsima, Timothe"]
[Result "0-1"]
[ECO "B91"]
[WhiteElo "1766"]
[BlackElo "2438"]
[Annotator "TA"]
[PlyCount "40"]
[EventDate "2024.04.14"]
[EventType "swiss"]
[EventCountry "FRA"]
[SourceTitle "playchess.com"]
[Source "ChessBase"]
[SourceQuality "1"]
[TimeControl "5400+30"]

{[%evp 17,40,0,14,4,6,20,22,8,4,-23,-18,-27,-3,-56,-37,-155,-150,-142,-131,-220,-196,-218,-203,-827,-839]} 1. e4 {[%emt 0:00:04]} c5 {[%emt 0:00:11]} 2. Nf3 {[%emt 0:00:02]} d6 {[%emt 0:00:09]} 3. d4 {[%emt 0:00:14]} cxd4 {[%emt 0:00:06]} 4. Nxd4 {[%emt 0:00:07]} Nf6 {[%emt 0:00:03]} 5. Nc3 {[%emt 0:00:08]} a6 {[%emt 0:00:18]} 6. g3 {[%emt 0:00:16]} e5 {[%emt 0:00:18]} 7. Nde2 {[%emt 0:00:09]} Be7 {[%emt 0:00:53]} 8. Bg2 {[%emt 0:00:07]} O-O {[%emt 0:01:41]} 9. O-O {[%emt 0:02:25]} b5 {[%emt 0:00:33]} 10. Nd5 {[%emt 0:00:29]} Nxd5 {[%emt 0:02:04]} 11. Qxd5 {[%emt 0:02:06]} Ra7 {[%emt 0:00:10]} 12. Be3 {[%emt 0:10:29] The position is equal.} Rb7 {[%emt 0:01:00]} 13. c3 {[%emt 0:13:20]} Nd7 {[%emt 0:04:09]} 14. h3 {[%emt 1:07:34]} h5 {[%emt 0:06:36]} 15. Nc1 {[%emt 0:00:00]} (15. Qd2 $11) 15... h4 {[%emt 0:32:20]} 16. a4 {[%emt 0:00:00]} (16. Qd2 $1 $15) 16... hxg3 {[%emt 0:09:59]} 17. fxg3 {[%emt 0:00:00]} Nb6 {[%emt 0:00:18]} 18. Bxb6 {[%emt 0:00:00]} (18. Qd3 $17) 18... Qxb6+ $19 {[%emt 0:00:05]} 19. Kh2 {[%emt 0:00:00]} bxa4 {[%emt 0:00:08]} 20. Nd3 $2 {[%emt 0:00:00] [#]} (20. Qd3) 20... Be6 {[%emt 0:00:16] Black took control after the opening.   Weighted Error Value: White=0.92/Black=0.07 (flawless) .  Mistake:       	White=4     	---        Inaccurate:     	White=1     	---        OK:         	White=1     	Black=5      Best:        	---       	Black=1} 0-1